Cogmind - Beta 17 @@@ ROGUE MODE // 2026.07.29 @ 08:40:46 Player: gortmind Result: Destroyed by G-34 Mercenary with Small Laser Performance ------------- Evolutions (1) 500 Regions Visited (3) 600 Robots Destroyed (41) 205 Value Destroyed (937) 937 Prototype IDs (3) 60 Alien Tech Used (0) 0 Bonus (45) 45 TOTAL SCORE: 2347 Bonus ------- High Alert Combat Kills 45 Cogmind --------- Core Integrity 0/400 Matter 200/300 Energy 76/100 System Corruption 1% Temperature Cool (6) Movement Core (50) Location -9/Materials Parts ------- > --- POWER (1) -------- (None) > --- PROPULSION (2) --- (None) > --- UTILITY (3) ------ Machine Analyzer Transport Network Coupler Improved Utility Shielding > --- WEAPON (3) ------- (None) > --- INVENTORY (5) ---- Hacking Suite Improved Datajack Mining Laser Peak State ------------ > --- POWER ------------ Light Nuclear Core > --- PROPULSION ------- Aluminum Leg Aluminum Leg > --- UTILITY ---------- Small Storage Unit Light Armor Plating Shield Generator > --- WEAPON ----------- Light Assault Rifle Light Cannon Mini Grenade Launcher > --- INVENTORY -------- Light Ion Engine Heavy Ion Engine Aluminum Leg Aluminum Leg Transport Network Coupler Hacking Suite Light Cannon Mining Laser [Rating: 14] Favorites ----------- Power Light Nuclear Core Engine Light Ion Engine Power Core Light Nuclear Core Propulsion Aluminum Leg Leg Aluminum Leg Utility Small Storage Unit Device Shield Generator Storage Small Storage Unit Processor Machine Analyzer Protection Light Armor Plating Weapon Light Cannon Ballistic Gun Light Assault Rifle Ballistic Cannon Light Cannon Launcher Mini Grenade Launcher Special Weapon Mining Laser Build | -11 -10 -10 -9 ------- Run | Yrd Mat Min Mat Slots Evolved 2 | . . . 2 Power . | . . . . Propulsion . | . . . . Utility 1 | . . . 1 Weapon 1 | . . . 1 Parts Attached 27 | 7 3 1 16 Power 5 | 1 1 1 2 Engine 4 | 1 1 . 2 Core 1 | . . 1 . Reactor . | . . . . Propulsion 6 | 2 . . 4 Treads . | . . . . Leg 6 | 2 . . 4 Wheel . | . . . . Hover . | . . . . Flight . | . . . . Utility 8 | 2 1 . 5 Device 2 | 1 1 . . Storage 1 | 1 . . . Processor 2 | . . . 2 Hackware . | . . . . Protection 3 | . . . 3 Artifact . | . . . . Weapon 8 | 2 1 . 5 Energy Gun . | . . . . Energy Cannon . | . . . . Ballistic Gun 3 | 2 . . 1 Ballistic Cannon 3 | . 1 . 2 Launcher 1 | . . . 1 Special Weapon 1 | . . . 1 Impact Weapon . | . . . . Slashing Weapon . | . . . . Piercing Weapon . | . . . . Special Melee Weapon . | . . . . Unidentified Prototypes 1 | . . . 1 Parts Lost 13 | . . . 13 Power 2 | . . . 2 Propulsion 5 | . . . 5 Utility 3 | . . . 3 Weapon 3 | . . . 3 Highest Loss Streak 5 | . . . 5 To Critical Strikes 1 | . . . 1 Average Backups 6 | 5 7 8 5 Power . | 1 1 1 . Propulsion 1 | 2 2 2 1 Utility 1 | . 1 3 1 Weapon 1 | 1 2 2 1 Tool/Special . | . . . . Unused Backups 9 | . 4 2 3 Power 1 | . 1 . . Propulsion 4 | . 2 2 . Utility 1 | . . . 1 Weapon 1 | . 1 . . Tool/Special 2 | . . . 2 Average Slot Usage (%) 91 | . 100 100 84 Engine 6 | . 14 1 1 Core 5 | . . 12 8 Leg 23 | . 28 28 19 Device 10 | . 14 14 7 Storage 11 | . 14 14 8 Processor 1 | . . . 2 Protection 4 | . . . 8 Ballistic Gun 10 | . 15 14 5 Ballistic Cannon 12 | . 12 14 12 Launcher 3 | . . . 6 Peak Build Rating 14 | 7 9 11 14 Average Rating 9 | 5 7 10 11 On Entrance 6 | . 7 9 11 Avg Prop Armor Cover (%) . | . . . . Naked Turns . | . . . . Heaviest Build 25 | 11 14 16 25 Greatest Support 20 | 20 20 20 20 Greatest Overweight (x) 3 | . . . 3 Average Overweight (x) . | . . . . Largest Inventory Capacity 8 | 8 8 8 8 Average Capacity 7 | 6 8 8 7 Most Carried 8 | 7 8 8 8 Average Carried 6 | 5 7 7 5 Final Capacity 8 | 8 8 8 5 Final Carried 8 | 7 8 8 3 Class Distribution -------------------- 61% | Mutant 37% | Tank Dominant Class ---------------- Mutant | -10/Materials Mutant | -10/Mines Tank | -9/Materials Resources | -11 -10 -10 -9 ----------- Run | Yrd Mat Min Mat Matter Collected 856 | 215 212 82 347 Remotely . | . . . . Salvage Created 855 | 38 154 57 606 Parts 81 | 6 16 4 55 Haulers Intercepted 4 | . 1 . 3 Recyclers Shooed . | . . . . Parts Field Recycled . | . . . . Retrieved Matter . | . . . . Parts Self-Destructed . | . . . . Prevented . | . . . . Parts Restored . | . . . . Kills | -11 -10 -10 -9 ------- Run | Yrd Mat Min Mat Combat Hostiles Destroyed 29 | . 6 2 21 Melee 1 | . . . 1 Guns 3 | . 1 . 2 Cannons 20 | . 5 2 13 AOE 5 | . . . 5 Classes Destroyed 8 | 1 5 . 2 Worker 2 | . . . 2 Tunneler 2 | 2 . . . Hauler 4 | . 1 . 3 Operator 1 | . 1 . . Watcher 3 | . 1 . 2 Swarmer 14 | . 5 . 9 Grunt 9 | . 1 2 6 Sentry 6 | . . . 6 Best Kill Streak 6 | 2 2 2 6 Combat Bots Only 5 | . 2 2 5 Max Kills in Single Turn 2 | 1 1 1 2 Gunslinging . | . . . . Exploded 2 | . . . 2 Melee 1 | . . . 1 Uniques/NPCs Destroyed . | . . . . Combat | -11 -10 -10 -9 -------- Run | Yrd Mat Min Mat Hostile Shots Fired 284 | . 33 14 237 Missed 94 | . 9 4 81 Hits 190 | . 24 10 156 Projectile 190 | . 24 10 156 Critical Strikes 3 | . . . 3 Damage Taken 1898 | . 193 86 1619 Core 487 | . 41 45 401 Absorbed by Shields 266 | . 3 33 230 Redirected to Shielding 1 | . . . 1 Core Remaining (%) 82 | 100 . 65 . Volleys Fired 103 | 4 35 7 57 Largest 3 | 2 2 2 3 Hottest 93 | 40 50 50 93 Shots Fired 224 | 8 70 14 132 Gun 93 | 8 35 7 43 Cannon 118 | . 35 7 76 Launcher 13 | . . . 13 Special . | . . . . Kinetic 211 | 8 70 14 119 Thermal . | . . . . Explosive 13 | . . . 13 Electromagnetic . | . . . . Robot Hit Streak 9 | 4 4 7 9 Robot Miss Streak 6 | 1 5 1 6 Penetration Max . | . . . . Secondary Targets . | . . . . Shots Hit Robots 116 | 6 28 13 69 Core Hits 67 | 3 16 3 45 Critical Kills . | . . . . Critical Parts Destroyed 2 | . 1 1 . Critical Strikes 4 | . 1 2 1 Destroy 2 | . 1 1 . Blast 2 | . . 1 1 Melee Attacks . | . . . . Impact . | . . . . Slashing . | . . . . Piercing . | . . . . Sneak Attacks . | . . . . Combat Hostiles . | . . . . Follow-up Attacks . | . . . . Damage Inflicted 2368 | 47 405 167 1749 Guns 508 | 47 125 47 289 Cannons 1218 | . 280 120 818 Explosions 526 | . . . 526 Melee . | . . . . Ramming 116 | . . . 116 Kinetic 1726 | 47 405 167 1107 Thermal . | . . . . Explosive 484 | . . . 484 Electromagnetic 42 | . . . 42 Impact . | . . . . Slashing . | . . . . Piercing . | . . . . Highest Corruption 1 | . . . 1 Average Corruption 1 | . . . 1 Corruption Purged . | . . . . Corruption Blocked . | . . . . Effects 12 | . . . 12 Message Errors 4 | . . . 4 Matter Fused 1 | . . . 1 Heat Flow Errors 1 | . . . 1 Energy Discharges 2 | . . . 2 Data Loss (minor) 2 | . . . 2 Misfires 1 | . . . 1 Weapon Failures 1 | . . . 1 Overload Shots . | . . . . Overflow Damage 35 | . . . 35 Projectiles . | . . . . Explosions 35 | . . . 35 Melee . | . . . . Knockbacks 7 | . 1 2 4 Impact 1 | . . . 1 Kinetic 6 | . 1 2 3 Secondary . | . . . . Self-Inflicted Damage 174 | . . . 174 Shots 5 | . . . 5 Rammed 7 | . . . 7 Targets Rammed 67 | . 1 . 66 Kicked 60 | . 1 . 59 Crushed . | . . . . Highest Temperature 177 | . 20 24 177 Average Temperature 27 | . 8 13 36 Received Heat Transfer 601 | . 4 46 551 Siege Activations . | . . . . Martial Activations . | . . . . Shielding Activations . | . . . . Robots Disrupted . | . . . . Combat Hostiles . | . . . . Robots Corrupted . | . . . . Combat Hostiles . | . . . . Parts Fried . | . . . . Impact Corruptions . | . . . . Robots Melted . | . . . . Combat Hostiles . | . . . . Parts Melted . | . . . . Heat Transferred . | . . . . Parts Sabotaged . | . . . . Parts Stolen . | . . . . Parts Stripped . | . . . . Power Chain Reactions 2 | . . . 2 Alert | -11 -10 -10 -9 ------- Run | Yrd Mat Min Mat Maximum Alert Level 2 | . . . 2 Low Security (%) 79 | 100 100 100 59 Level 1 8 | . . . 16 Level 2 12 | . . . 23 Level 3 . | . . . . Level 4 . | . . . . Level 5 . | . . . . High Security . | . . . . Max Security . | . . . . Peak Influence 490 | 10 75 50 490 Initial . | . . . . Average 101 | . 16 8 181 Influence Increases 1214 | 10 253 50 901 Destroy 0b10 Robot/C 580 | . 120 40 420 Destroy 0b10 Robot/NC 60 | 10 15 . 35 Destroy Leader 164 | . 24 10 130 Successful Hack 34 | . 34 . . Disable Machine 180 | . . . 180 Destroy Structure 121 | . . . 121 Partial Spotted 30 | . 30 . . Lose Combat Pursuer 45 | . 30 . 15 Influence Decreases 797 | 10 253 50 484 Time Decay 667 | 10 253 50 354 Lost Part 130 | . . . 130 Squads Dispatched 7 | . 2 . 5 Investigation 2 | . . . 2 Extermination . | . . . . Reinforcement 4 | . 2 . 2 Assault 1 | . . . 1 Garrison . | . . . . Intercept . | . . . . Searches Triggered . | . . . . Construction Impeded . | . . . . Haulers Reinforced . | . . . . Active Scanning Responses . | . . . . Cargo Convoy Interrupts . | . . . . Stealth | -11 -10 -10 -9 --------- Run | Yrd Mat Min Mat Distress Signals 4 | . . . 4 Communications Jammed . | . . . . Distress Signals . | . . . . Times Spotted 57 | . 14 2 41 Peak Tracking Total 9 | . 4 2 9 Tactical Retreats 3 | . 2 . 1 Traps | -11 -10 -10 -9 ------- Run | Yrd Mat Min Mat Traps Triggered 2 | . . . 2 Indirectly . | . . . . Trap Hack Attempts . | . . . . Triggered . | . . . . Disarmed . | . . . . Reprogrammed . | . . . . Reused . | . . . . Traps Extracted . | . . . . Installed . | . . . . Triggered . | . . . . Machines | -11 -10 -10 -9 ---------- Run | Yrd Mat Min Mat Machines Disabled 12 | . . . 12 Max in Single Turn 3 | . . . 3 Machines Repaired . | . . . . Machines Dismantled . | . . . . Machines Sabotaged . | . . . . Overloaded Fab Kills . | . . . . Hacking | -11 -10 -10 -9 --------- Run | Yrd Mat Min Mat Machines Accessed 7 | . 6 . 1 Terminals 6 | . 5 . 1 Fabricators . | . . . . Repair Stations . | . . . . Recycling Units 1 | . 1 . . Scanalyzers . | . . . . Garrison Access . | . . . . Total Hacks 21 | . 17 . 4 Successful 15 | . 14 . 1 Failed 6 | . 3 . 3 Catastrophic 3 | . 1 . 2 Database Lockouts . | . . . . Manual . | . . . . Terminals 19 | . 15 . 4 Fabricators . | . . . . Repair Stations . | . . . . Recycling Units 2 | . 2 . . Scanalyzers . | . . . . Garrison Access . | . . . . Terminal Hacks 13 | . 12 . 1 Prototype ID Bank 1 | . 1 . . Alert Level 1 | . . . 1 Locate Traps 4 | . 4 . . Patrol Status 1 | . 1 . . Reinforcement Status 1 | . 1 . . Recall Investigation 1 | . 1 . . Recall Reinforcements 1 | . 1 . . Hauler Manifests 1 | . 1 . . Registered Components 1 | . 1 . . Zone Layout 1 | . 1 . . Fabricator Hacks . | . . . . Repair Station Hacks . | . . . . Recycling Unit Hacks 2 | . 2 . . Report Inventory 2 | . 2 . . Scanalyzer . | . . . . Garrison Access Hacks . | . . . . Unauthorized Hacks . | . . . . Terminals . | . . . . Fabricators . | . . . . Repair Stations . | . . . . Recycling Units . | . . . . Scanalyzers . | . . . . Garrison Access . | . . . . Data Cores Recovered 1 | . 1 . . Used 1 | . 1 . . Hacking Detections 5 | . 4 . 1 Full Trace Events 4 | . 3 . 1 Feedback Events . | . . . . Feedback Blocked . | . . . . Robot Schematics Acquired . | . . . . Robots Built . | . . . . Authchips . | . . . . Time . | . . . . Total Robot Build Rating . | . . . . Part Schematics Acquired . | . . . . Parts Built . | . . . . Authchips . | . . . . Time . | . . . . Total Part Build Rating . | . . . . Part Studies Acquired . | . . . . Parts Repaired . | . . . . Time . | . . . . Parts Recycled . | . . . . Recycled Matter . | . . . . Retrieved Matter . | . . . . Retrieved Components . | . . . . Parts Scanalyzed . | . . . . Part Schematics Acquired . | . . . . Parts Damaged . | . . . . Bothacking | -11 -10 -10 -9 ------------ Run | Yrd Mat Min Mat Used RIF Installer . | . . . . Robots Hacked . | . . . . Non-combat . | . . . . Combat . | . . . . Robot Hacks Applied . | . . . . Relay Couplers Released . | . . . . Fabnet Peak Effective % . | . . . . Robots Rewired . | . . . . Allies Hacked . | . . . . Hacks Repelled . | . . . . Allies | -11 -10 -10 -9 -------- Run | Yrd Mat Min Mat Total Allies . | . . . . Largest Group . | . . . . Highest-Rated Group . | . . . . Highest-Rated Ally . | . . . . Total Orders . | . . . . Ally Attacks . | . . . . Total Damage . | . . . . Kills . | . . . . Allies Corrupted . | . . . . Allies Melted . | . . . . Intel | -11 -10 -10 -9 ------- Run | Yrd Mat Min Mat Active Infowar (turns) 889 | 56 636 . 197 Seismic 692 | 56 636 . . T.N.C. 166 | . . . 166 Machine Analysis 196 | . . . 196 Robot Analysis Total . | . . . . Derelict Logs Recovered 1 | . . 1 . Drone Launches . | . . . . Drone Recoveries . | . . . . Exploration | -11 -10 -10 -9 ------------- Run | Yrd Mat Min Mat Turns Passed 2660 | 127 886 255 1392 Spaces Moved 1424 | 85 598 188 553 Core 28 | 8 . . 20 Treads . | . . . . Legs 1396 | 77 598 188 533 Wheels . | . . . . Hover . | . . . . Flight . | . . . . Fastest Speed 50 | 50 120 120 50 Average Speed 130 | 113 120 120 148 Slowest Speed 260 | 120 120 120 260 Overloaded Moves . | . . . . Propulsion Burnouts . | . . . . Robots Hopped . | . . . . Potential Cave-ins . | . . . . Cave-ins Triggered . | . . . . Exploration Rate (%) 39 | 4 69 30 53 Regions Visited 3 Branch Regions 1 Pre-discovered Areas . | . . . . Known Exits Taken . | . . . . Unknown Exits Taken 3 | 1 1 1 . Scrap Searched . | . . . . Spaces Dug . | . . . . Terrain Destroyed 123 | . . . 123 Melee . | . . . . Projectile 3 | . . . 3 AOE 120 | . . . 120 Terrain Rammed . | . . . . Walls Destroyed . | . . . . Machines Disabled . | . . . . Actions | -11 -10 -10 -9 --------- Run | Yrd Mat Min Mat Total 2016 | 109 705 207 995 Wait 332 | . 54 2 276 Move 1421 | 84 597 187 553 Hop . | . . . . Pick Up 40 | 14 8 5 13 Fast Attach . | . . . . Attach 20 | 7 . . 13 Detach 1 | . . . 1 Swap 11 | . 3 1 7 Drop 21 | . 7 5 9 Fire 103 | 4 35 7 57 Melee . | . . . . Ram 7 | . . . 7 Kick 60 | . 1 . 59 Crush . | . . . . Escape Stasis . | . . . . Rewire . | . . . . Trap . | . . . . Miscellaneous . | . . . . Route ------- -11/Scrapyard -10/Materials (discovered 3 exits: *Mat x2 / [*Min]) -10/Mines -9/Materials (discovered 1 exit: *Min) History --------- Turn | Location | Event 14 | -11/Scrapyard | Discovered new exit (range 15) 128 | -11/Scrapyard | Entered Materials 200 | -10/Materials | Discovered new exit (range 8) 332 | -10/Materials | Build established: Mutant 375 | -10/Materials | Discovered new exit (range 15) 416 | -10/Materials | Discovered new exit (range 7) 1014 | -10/Materials | Entered Mines 1069 | -10/Mines | Discovered new exit (range 10) 1269 | -10/Mines | Entered Materials 1269 | -9/Materials | Evolved 2 slots: Utility x1, Weapon x1 1270 | -9/Materials | Identified exit to Mines 1569 | -9/Materials | Build established: Tank 2353 | -9/Materials | Core integrity fell below 50% 2379 | -9/Materials | Lost 5 parts (1p2n1u1w) 2469 | -9/Materials | First assault squad dispatched 2646 | -9/Materials | Core integrity fell below 20% 2649 | -9/Materials | Build established: Mutant 2661 | -9/Materials | Destroyed by G-34 Mercenary with Small Laser Last Messages --------------- 02643_ Kicked G-34 Mercenary. 02643_ K-01 Serf collects debris. 02644_ Kicked G-34 Mercenary. 02647_ K-01 Serf collects debris. 02647_ Kicked G-34 Mercenary out of the way. 02649_ Kicked G-34 Mercenary. 02650_ Lgt. Ion Engine destroyed. 02650_ K-01 Serf cleans the Terminal. 02650_ Kicked G-34 Mercenary. 02652_ Kicked G-34 Mercenary out of the way. 02653_ Aluminum Leg destroyed. 02653_ Kicked G-34 Mercenary. 02654_ Aluminum Leg destroyed. 02655_ Slammed into G-34 Mercenary. 02658_ System corrupted: Energy discharge (-39). 02658_ Slammed into G-34 Mercenary. 02660_ Destabilizing: System interference. 02660_ Machine Analyzer temporarily disabled. 02661_ Slammed into G-34 Mercenary. Map ----- +----------------------------------------------------+ | ???????????????????????????????? | | ???????????????????????????????? | | ???????????? ??????????????????? | | ???????????? ??????????????????? | | ???????????? ??????????????????? | | ???????????? ??????????????????? | | ???????????? ??????????????????? | | ???????????? ??????????????????? | | ???????????? ??????????????????? | | ???????????# #?????????????????? | | ???????????# #?"""?????????????? | | ???????????# #?"""?????????????? | | ???????????+ +?"""?????????????? | | ???????????# #?????????????????# | | ?????##????# #########?????????# | | ????# """?# # #?????????# | | ????# """ # # #?????????# | | ????# """ + + #?????????# | | ????# # # #?????????# | | ????# ??# #########???#+#???# | | ????# ????# #???????????# #???# | | ????#??????# #???????????# #???# | | ############ #???????????+ #???# | | # ## #???????????# #???# | | # ## ############# ##### | | # g@ # a | | # """llss m | | # "" """ # k % | | # "T """ ###+################## | | # "" # ???????????????? | | # ! # = ][= ?????????##### | | ########### ][= *#??????# | | ??????????# [[= #??????# = | | ??????????# / ?????" | | ??????????# """ " # ????# | | ??????????# """ T #? ???# | | ??????????# """ " #?? #?# | | ??????????# #??? #?# | | ??????????##???### #????#?# | | ??????????????????#?? ?????##### | | ???????????? ???????# ####### | | ?????????? ?????? | | ?????????? ????? | | ?????????? """? ?? | | ?????????? """ ?????#### ### | | ??????????# """ ???######/#### | | ??????????# ????# | | ??????????# ?????+ + | | ??????????# ??????# # | | ??????????# #??????# # | +----------------------------------------------------+ Best States ------------- Heat Dissipation 28 Energy Generation 14 Energy Capacity 160 Matter Stores 300 Matter Capacity 300 Sight Range 16 Terrain Scan Density 10 Armor Coverage 150 Utility Shielding 66 Evasion (%) 55 Item Schematics ----------------- None Robot Schematics ------------------ None Fabricated ------------ Nothing Repaired ---------- Nothing Studied --------- None Alien Tech Used ----------------- None Achievements -------------- GoHome() Challenges ------------ None Game ------ Seed WeaponMobileAmplifier Manual? 0 Play Time 00:29:54 Cumulative 13.7 hours Start 2026.07.29 @ 08:08:37 End 2026.07.29 @ 08:40:46 Sessions 1 Manual Loads 0 Difficulty Rogue Special Mode None Game No. 21 Rogue 21 Adventurer 0 Explorer 0 Win Type - Total 0 Types 0/0/0/0/0/0/0/0/0/0 Lore% 12 Gallery% 13 Achievement% 15 Wizard Run 0 Options --------- Layout 1 ASCII 0 Keyboard 0 Movement Mouse Keybinds 0 Fullscreen 1 Font 48/Smallcaps Map View 50x35 Zoom Use 0% Tactical HUD 1 Map Filters NONE Filters NONE Steam 1 RUN: 6f384cce-c805-4b2b-bf7b-35e3f2b977b0